bitfinex-derivatives/quotes_ETHF0:USTF0_20251003
["timestamp","ask_amount","ask_price","bid_price","bid_amount"]
[1759475461024,0.7701,4463.9,4463.8,1.20803497]
[1759475461313,0.7701,4463.9,4463.8,1.43203497]
[1759475461615,0.1269,4464.5,4464.4,0.4029]
[1759475461911,0.666,4464.5,4464.4,2.25375262]
[1759475462102,0.666,4464.5,4464.4,1.0457]
[1759475462301,0.666,4464.5,4464.4,2.25375262]
[1759475462710,0.666,4464.5,4464.4,2.31065262]
[1759475462905,0.00279236,4464.9,4464.4,2.31065262]
[1759475462906,0.21029236,4464.9,4464.8,0.82167]
[1759475463102,0.74719236,4464.9,4464.8,1.04567]
[1759475464713,0.74719236,4464.9,4464.8,1.32657]
[1759475464913,0.74719236,4464.9,4464.8,2.53396766]
[1759475465115,0.74719236,4464.9,4464.8,1.32657]
[1759475465913,0.74719236,4464.9,4464.8,2.53396766]
[1759475466215,0.54189236,4464.9,4464.8,1.32657]
[1759475466711,0.33439236,4464.9,4464.8,2.53396766]
[1759475466918,0.00279236,4464.9,4464.8,2.53396766]
[1759475467109,0.00279236,4464.9,4464.8,2.53089227]
[1759475467509,0.4595,4465.5,4464.8,1.32657]
[1759475467710,0.4595,4465.5,4465.4,1.10251]
[1759475467711,0.3316,4465.5,4465.4,1.10251]
[1759475467915,0.3316,4465.5,4465.4,1.32651]
[1759475468217,0.8766,4466.0,4465.9,0.61987]
[1759475468407,0.8766,4466.0,4465.9,0.84387]
[1759475468614,0.87879712,4466.0,4465.9,1.32881222]
[1759475468815,0.87879712,4466.0,4465.9,0.44344222]
[1759475469112,0.87879712,4466.0,4465.9,0.84621222]
[1759475469714,0.87879712,4466.0,4465.9,1.04791222]
[1759475470106,0.87879712,4466.0,4465.9,1.32881222]
[1759475470510,0.67349712,4466.0,4465.9,1.32881222]
[1759475471313,0.87879712,4466.0,4465.9,0.42114222]
[1759475471620,0.87879712,4466.0,4465.9,0.22634222]
[1759475471821,0.87879712,4466.0,4465.9,0.00234222]
[1759475472022,0.87879712,4466.0,4465.9,0.22634222]
[1759475472315,5.87879712,4466.0,4465.9,0.22634222]
[1759475472724,5.87879712,4466.0,4465.9,0.00234222]
[1759475472925,5.87879712,4466.0,4465.9,0.22634222]
[1759475473620,5.87879712,4466.0,4465.9,0.00234222]
[1759475473820,5.87879712,4466.0,4465.9,0.22634222]
[1759475476623,5.87879712,4466.0,4465.9,0.00234222]
[1759475476831,5.87879712,4466.0,4465.9,0.22634222]
[1759475477829,0.87879712,4466.0,4465.9,0.22634222]
[1759475478232,0.87879712,4466.0,4465.9,0.44344222]
[1759475478423,0.87879712,4466.0,4465.9,0.22634222]
[1759475481337,0.87879712,4466.0,4465.9,0.00234222]
[1759475481534,0.87879712,4466.0,4465.9,0.22634222]
[1759475481733,0.87879712,4466.0,4465.9,0.44344222]
[1759475482332,0.87879712,4466.0,4465.9,0.64514222]
[1759475484234,0.87879712,4466.0,4465.9,0.92604222]
[1759475484536,0.87879712,4466.0,4465.9,0.64514222]
[1759475485534,0.87879712,4466.0,4465.9,0.44344222]
[1759475486428,0.87879712,4466.0,4465.9,0.22634222]
[1759475487729,0.87879712,4466.0,4465.9,0.44134222]
[1759475488333,0.87879712,4466.0,4465.9,0.22634222]
[1759475489332,0.87879712,4466.0,4465.9,0.00234222]
[1759475489733,0.87879712,4466.0,4465.9,0.22634222]
[1759475491230,0.87879712,4466.0,4465.9,0.00234222]
[1759475491432,0.87879712,4466.0,4465.9,0.22634222]
[1759475491834,0.87879712,4466.0,4465.9,0.42974222]
[1759475493241,0.87879712,4466.0,4465.9,0.63224222]
[1759475493737,0.87879712,4466.0,4465.9,0.40824222]
[1759475493936,0.87879712,4466.0,4465.9,0.22634222]
[1759475496949,0.87879712,4466.0,4465.9,0.00234222]
[1759475497248,0.87879712,4466.0,4465.9,0.22634222]
[1759475498354,0.87879712,4466.0,4465.9,0.00234222]
[1759475498653,0.87879712,4466.0,4465.9,0.22634222]
[1759475498850,0.87879712,4466.0,4465.9,0.00234222]
[1759475499248,0.87879712,4466.0,4465.9,0.22634222]
[1759475501250,0.87879712,4466.0,4465.9,0.63224222]
[1759475501450,1.3335,4466.0,4465.9,0.22634222]
[1759475502053,1.3335,4466.0,4465.9,0.00234222]
[1759475502254,1.3335,4466.0,4465.9,0.22634222]
[1759475503753,1.3335,4466.0,4465.9,0.00234222]
[1759475503956,1.3335,4466.0,4465.9,0.22634222]
[1759475506061,1.3335,4466.0,4465.9,0.42974222]
[1759475506255,1.3335,4466.0,4465.9,0.00234222]
[1759475506450,1.3335,4466.0,4465.9,0.22634222]
[1759475507857,1.3335,4466.0,4465.9,0.00234222]
[1759475508461,1.3335,4466.0,4465.9,0.22634222]
[1759475512464,1.3335,4466.0,4465.9,0.00234222]
[1759475516057,1.3335,4466.0,4465.9,0.20574222]
[1759475516866,1.3335,4466.0,4465.9,0.00234222]
[1759475517965,1.3335,4466.0,4465.9,0.22634222]
[1759475519364,1.3335,4466.0,4465.9,0.00234222]
[1759475519564,1.3335,4466.0,4465.9,0.22634222]
[1759475520168,1.3335,4466.0,4465.9,0.00234222]
[1759475520966,0.8689,4465.5,4465.4,0.224]
[1759475521172,0.4217,4464.9,4464.8,1.20422143]
[1759475521474,1.14836,4464.9,4464.8,0.224]
[1759475521969,1.14836,4464.9,4464.8,0.22562674]
[1759475522168,0.7455,4464.9,4464.8,0.42902674]
[1759475523066,0.7455,4464.9,4464.8,0.64852674]
[1759475523464,0.7455,4464.9,4464.8,0.42902674]
[1759475523972,0.7455,4464.9,4464.8,0.00162674]
[1759475524167,0.7455,4464.9,4464.8,0.22562674]
[1759475526368,0.7455,4464.9,4464.8,0.43052674]
[1759475526671,0.3238,4464.9,4464.8,0.93292674]
[1759475526872,0.8518,4465.5,4465.4,0.2049]
[1759475527074,0.8518,4465.5,4465.4,0.4289]
[1759475527468,0.40277,4465.9,4465.4,0.6484]
[1759475527667,0.1322,4466.5,4465.4,0.6484]
[1759475527668,0.5134,4465.6,4465.5,0.7073]
[1759475528373,0.5134,4465.6,4465.5,0.4244]
[1759475529075,0.7284,4465.6,4465.5,0.4244]
[1759475529272,0.5134,4465.1,4465.0,1.91152143]
[1759475529468,0.5134,4465.1,4465.0,2.13552143]
[1759475530274,0.3117,4465.1,4465.0,2.13552143]
[1759475531174,0.3117,4465.1,4465.0,0.9313]
[1759475531373,0.3117,4465.4,4465.3,0.4244]
[1759475531570,0.3117,4465.9,4465.3,0.4244]
[1759475531775,0.5134,4465.9,4465.8,0.4244]
[1759475531975,1.18523456,4465.9,4465.8,0.6484]
[1759475533677,1.18523456,4465.9,4465.8,0.4289]
[1759475533872,1.18523456,4465.9,4465.8,0.224]
[1759475534773,1.18523456,4465.9,4465.8,0.4289]
[1759475535676,1.18523456,4465.9,4465.8,0.224]
[1759475537571,1.18523456,4465.9,4465.8,0.4289]
[1759475537778,0.7284,4465.9,4465.8,0.6484]
[1759475538375,0.7284,4465.9,4465.8,0.9313]
[1759475539374,0.3117,4465.9,4465.8,0.9313]
[1759475539776,0.5134,4465.9,4465.8,0.9313]
[1759475545477,0.00219712,4466.0,4465.8,0.9313]
[1759475545674,0.00219712,4466.0,4465.9,1.12047]
[1759475545882,0.00219712,4466.0,4465.9,2.32757247]
[1759475546982,0.00219712,4466.0,4465.9,1.12047]
[1759475547180,0.5305,4466.9,4466.8,0.7177]
[1759475547381,0.5305,4466.9,4466.8,0.9417]
[1759475548285,0.53282247,4466.9,4466.8,0.9417]
[1759475550479,0.53282247,4466.9,4466.8,1.34439]
[1759475550685,0.53282247,4466.9,4466.8,0.9417]
[1759475550885,0.32212247,4466.9,4466.8,0.9417]
[1759475551080,0.73912247,4466.9,4466.8,0.6589]
[1759475552089,0.7246,4466.3,4466.2,40.8]
[1759475552289,0.7246,4466.3,4466.2,0.6419]
[1759475552891,0.7246,4466.3,4466.2,1.10445343]
[1759475553383,0.1273,4466.5,4466.4,0.4179]
[1759475553384,0.4314,4466.5,4466.4,0.4179]
[1759475553589,0.20662247,4466.9,4466.8,0.4179]
[1759475553889,0.51072247,4466.9,4466.8,0.6419]
[1759475554086,1.12960247,4466.9,4466.8,0.6419]
[1759475554285,1.12960247,4466.9,4466.8,0.4313]
[1759475554486,0.72692247,4466.9,4466.8,0.4313]
[1759475555284,0.72692247,4466.9,4466.8,0.2073]
[1759475555484,0.72692247,4466.9,4466.8,0.4313]
[1759475556390,0.72692247,4466.9,4466.8,0.9249]
[1759475557585,0.72692247,4466.9,4466.8,0.6419]
[1759475561094,0.72692247,4466.9,4466.8,0.9249]
[1759475561692,0.72692247,4466.9,4466.8,1.32759]
[1759475561693,0.30642247,4466.9,4466.8,1.32759]
[1759475561885,0.00232247,4466.9,4466.8,1.32759]
[1759475562089,0.30642247,4466.9,4466.8,0.9249]
[1759475562391,0.72692247,4466.9,4466.8,0.6419]
[1759475562593,0.72692247,4466.9,4466.8,1.04459]
[1759475562793,0.51072247,4466.9,4466.8,1.32759]
[1759475563499,0.00232247,4466.9,4466.8,1.32759]
[1759475564394,0.30642247,4466.9,4466.8,1.32759]
[1759475565288,0.00232247,4466.9,4466.8,2.53263091]
[1759475566298,0.00232247,4466.9,4466.8,1.32759]
[1759475568599,0.42282247,4466.9,4466.8,0.2073]
[1759475568794,0.00232247,4466.9,4466.8,2.12917507]
[1759475569095,0.30642247,4466.9,4466.8,2.12917507]
[1759475570092,0.30642247,4466.9,4466.8,0.9249]
[1759475570691,0.00232247,4466.9,4466.8,0.9249]
[1759475571990,0.30642247,4466.9,4466.8,0.7009]
[1759475572191,0.30642247,4466.9,4466.8,0.9249]
[1759475572793,0.00232247,4466.9,4466.8,0.9249]
[1759475574794,0.00232247,4466.9,4466.8,2.53566214]
[1759475574996,0.3261,4467.9,4467.8,0.7009]
[1759475575293,0.3261,4467.9,4467.8,1.3275]
[1759475576002,0.02490017,4467.9,4467.8,1.3275]
[1759475578096,0.3041,4468.6,4468.5,1.10343]
[1759475578303,0.3041,4468.6,4468.5,1.32743]
[1759475578997,0.1273,4469.0,4468.9,0.8204]
[1759475578998,0.3316,4469.0,4468.9,0.8204]
[1759475579204,0.63855995,4469.0,4468.9,0.64423279]
[1759475579394,0.85475995,4469.0,4468.9,0.64423279]
[1759475584806,0.85475995,4469.0,4468.9,0.92693279]
[1759475585006,0.30695995,4469.0,4468.9,0.92693279]
[1759475585201,0.00285995,4469.0,4468.9,1.10876236]
[1759475586306,0.5547,4470.0,4469.9,0.81651]
[1759475586606,0.8895,4470.0,4469.9,0.224]
[1759475587209,0.89219194,4470.0,4469.9,0.224]
[1759475587810,0.89219194,4470.0,4469.3,0.40245]
[1759475588007,0.8902,4469.5,4469.4,0.6381]
[1759475588611,0.8902,4469.5,4469.4,0.4141]
[1759475588809,0.8902,4469.5,4469.4,0.6381]
[1759475591810,0.8902,4469.5,4469.4,0.9208]
[1759475594612,0.8902,4469.5,4469.4,0.6381]
[1759475601926,0.6786,4469.5,4469.4,0.9208]
[1759475602122,0.89219194,4470.0,4469.9,0.81651]
[1759475602322,0.4274,4470.4,4470.3,0.40236]
[1759475602625,0.4274,4470.4,4470.3,0.4277]
[1759475602828,0.7622,4470.4,4470.3,0.4277]
[1759475603127,0.7622,4470.4,4470.3,0.6381]
[1759475603326,0.76396878,4470.4,4470.3,0.9208]
[1759475604228,0.76396878,4470.4,4470.3,41.7208]
[1759475606330,0.55236878,4470.4,4470.3,41.7208]
[1759475607429,0.55236878,4470.4,4470.3,42.92465096]
[1759475608124,0.55236878,4470.4,4470.3,41.7208]
[1759475608422,0.55236878,4470.4,4470.3,42.92465096]
[1759475608932,0.73786878,4470.4,4470.3,0.224]
[1759475609123,0.8702,4470.0,4469.9,1.20385096]
[1759475609325,0.8702,4470.0,4469.9,41.2458]
[1759475609521,0.8702,4470.0,4469.9,1.64928284]
[1759475610032,0.8702,4470.0,4469.9,1.64928199]
[1759475610234,0.8702,4470.0,4469.9,1.20348199]
[1759475610431,0.8702,4470.0,4469.9,0.224]
[1759475612332,0.8702,4470.0,4469.9,1.42748199]
[1759475613441,0.5645,4470.0,4469.9,0.224]
[1759475614041,0.8727,4470.0,4469.9,0.224]
[1759475614542,0.8727,4470.0,4469.8,1.20348199]
[1759475614738,0.5645,4470.0,4469.9,0.224]
[1759475615339,0.8727,4470.0,4469.9,0.224]
[1759475615736,5.8727,4470.0,4469.8,1.20348199]
[1759475616042,0.3082,4469.2,4469.1,1.20348199]
[1759475616241,0.7143,4469.2,4469.1,1.42748199]
[1759475616741,0.7143,4469.1,4469.0,1.20348199]
[1759475616942,0.1342,4469.5,4468.9,1.20581478]
[1759475616943,0.8485,4469.0,4468.9,1.20581478]
[1759475617143,0.8485,4469.0,4468.9,1.42981478]
[1759475617740,0.8485,4469.0,4468.9,0.22633279]
[1759475618341,0.8485,4469.0,4468.9,1.42981478]
[1759475618741,0.8485,4469.0,4468.9,0.22633279]
[1759475619844,0.8485,4469.0,4468.9,1.42981478]
[1759475620445,0.8485,4469.0,4468.9,0.22633279]
[1759475621344,0.8485,4469.0,4468.9,0.65073279]
[1759475624953,0.8485,4469.0,4468.9,0.42673279]
[1759475625154,0.8485,4469.0,4468.9,0.65073279]
[1759475626357,5.8485,4469.0,4468.9,0.00233279]
[1759475626754,0.8485,4469.0,4468.9,0.00233279]
[1759475635964,0.2047,4467.7,4467.6,1.40988199]
[1759475636166,0.7143,4467.7,4467.6,1.85188199]
[1759475636463,0.7143,4467.7,4467.6,2.13528199]
[1759475636967,0.7143,4467.7,4467.6,2.13749175]
[1759475637165,0.7143,4467.7,4467.6,1.91349175]
[1759475637368,0.7143,4467.7,4467.6,2.13749175]
[1759475638362,0.7143,4467.7,4467.6,0.93400976]
[1759475640168,0.7143,4467.7,4467.6,0.71000976]
[1759475640467,0.7143,4467.7,4467.6,0.93400976]
[1759475641766,0.5129,4467.7,4467.6,0.93400976]
[1759475642865,0.3082,4467.7,4467.6,0.93400976]
[1759475643763,0.1342,4468.0,4467.6,0.65060976]
[1759475643764,0.3206,4467.9,4467.6,0.65060976]
[1759475643959,0.3206,4467.9,4467.8,0.4281]
[1759475644164,0.1342,4468.5,4467.8,0.7112]
[1759475644370,0.3206,4468.3,4468.1,1.20421292]
[1759475644571,0.7593,4468.3,4468.2,0.4403]
[1759475644766,0.7593,4468.3,4468.2,0.6521]
[1759475646369,0.7593,4468.3,4468.2,1.85631292]
[1759475649573,0.7593,4468.3,4468.2,2.13941292]
[1759475650274,0.7593,4468.3,4468.2,1.85631292]
[1759475651573,0.7593,4468.3,4468.2,2.13941292]
[1759475652272,0.7593,4468.3,4468.2,0.9352]
[1759475652474,0.7593,4468.3,4468.2,0.6521]
[1759475654975,0.7593,4468.3,4468.2,0.9352]
[1759475656071,0.1342,4468.5,4468.2,0.9352]
[1759475656273,0.5373,4468.9,4468.8,0.4281]
[1759475656472,0.7593,4468.9,4468.8,0.6521]
[1759475656777,0.7593,4468.9,4468.8,0.224]
[1759475657767,0.7593,4468.9,4468.8,0.4403]
[1759475658376,0.7593,4468.9,4468.8,1.64747894]
[1759475658974,0.7593,4468.9,4468.8,1.43117894]
[1759475659173,0.7593,4468.9,4468.8,1.20717894]
[1759475659370,0.7593,4468.9,4468.8,0.224]
[1759475660476,0.4387,4468.7,4468.6,1.20717894]
[1759475660779,0.7593,4468.7,4468.6,0.224]
[1759475664278,0.7593,4468.7,4468.6,0.4403]
[1759475665378,0.7593,4468.7,4468.6,0.6521]
[1759475666484,0.7425,4468.7,4468.6,0.9351]
[1759475666677,0.7425,4468.7,4468.6,0.6521]
[1759475667585,0.7425,4468.7,4468.6,0.9351]
[1759475670280,0.7425,4468.7,4468.6,0.6521]
[1759475671685,0.5373,4468.7,4468.6,0.9351]
[1759475672988,0.3206,4468.7,4468.6,0.9351]
[1759475675482,0.3206,4468.7,4467.3,2.80318638]
[1759475675483,0.2073,4467.9,4467.7,1.60890107]
[1759475675690,1.1362,4467.7,4466.8,2.0105784]
[1759475675884,0.7336,4466.6,4466.5,0.4387]
[1759475676188,0.7336,4466.6,4466.5,0.7671]
[1759475676489,0.7336,4466.6,4466.5,0.9736]
[1759475676883,0.7336,4466.6,4466.5,0.97646791]
[1759475676884,0.73521946,4466.6,4466.5,0.97646791]
[1759475677385,0.73521946,4466.6,4466.5,0.64806791]
[1759475677589,0.73521946,4466.6,4466.5,0.44156791]
[1759475678589,1.13791946,4466.6,4466.5,0.44156791]
[1759475678989,0.73521946,4466.6,4466.5,0.44156791]
[1759475679186,0.73521946,4466.6,4466.5,0.76996791]
[1759475680483,0.73521946,4466.6,4466.5,0.97646791]
[1759475682895,0.52791946,4466.6,4466.5,1.10446791]
[1759475684089,0.00161946,4466.6,4466.5,1.10446791]
[1759475684794,0.52791946,4466.6,4466.5,1.10446791]
[1759475686087,0.00161946,4466.6,4466.5,1.10446791]
[1759475688792,0.52791946,4466.6,4466.5,1.10446791]
[1759475689800,0.20761946,4466.6,4466.5,1.10446791]
[1759475691996,0.73521946,4466.6,4466.5,0.75246791]
[1759475692205,0.73521946,4466.6,4466.5,0.97646791]
[1759475695002,0.73521946,4466.6,4466.5,0.75246791]
[1759475695302,0.73521946,4466.6,4466.5,0.97646791]
[1759475700197,0.73521946,4466.6,4466.5,0.75246791]
[1759475700402,0.73521946,4466.6,4466.5,0.97646791]
[1759475700902,0.73521946,4466.6,4466.5,0.75246791]
[1759475701105,0.73521946,4466.6,4466.5,0.97646791]
[1759475703709,0.73521946,4466.6,4466.5,0.96476791]
[1759475708215,0.20761946,4466.6,4466.5,0.96476791]
[1759475708509,0.5368,4467.2,4467.1,1.14055]
[1759475708709,1.01639188,4467.2,4467.1,1.36455]
[1759475709015,0.53579,4468.0,4467.4,0.40263]
[1759475709016,0.3293,4467.8,4467.4,0.40263]
[1759475709316,0.74562664,4467.8,4467.7,0.7379]
[1759475709517,1.22236317,4467.8,4467.7,0.9619]
[1759475709715,1.22236317,4467.8,4467.7,0.4264]
[1759475709916,1.22236317,4467.8,4467.7,0.224]
[1759475711315,1.22236317,4467.8,4467.7,0.4264]
[1759475713718,1.22236317,4467.8,4467.7,0.9619]
[1759475714615,0.74562664,4467.8,4467.7,0.9619]
[1759475715516,0.74562664,4467.8,4467.7,1.14078956]
[1759475715816,0.74562664,4467.8,4467.7,0.9619]
[1759475716621,0.00232664,4467.8,4467.7,0.9619]
[1759475716913,0.00232664,4467.8,4467.7,1.14354006]
[1759475717715,0.33162664,4467.8,4467.7,1.14354006]
[1759475717919,0.53912664,4467.8,4467.7,0.9619]
[1759475718119,0.74562664,4467.8,4467.7,0.9619]
[1759475718709,0.414,4467.2,4467.1,0.7379]
[1759475718913,0.7433,4467.2,4467.1,0.9619]
[1759475719717,0.7433,4467.2,4467.1,0.7379]
[1759475720018,0.7433,4467.2,4466.6,0.312]
[1759475720316,0.7433,4466.9,4466.8,0.5144]
[1759475720912,0.7433,4466.9,4466.5,0.00286791]
[1759475721108,0.7433,4466.9,4466.6,0.224]
[1759475721914,0.414,4466.7,4466.6,0.224]
[1759475722110,0.7433,4466.7,4466.6,0.224]
[1759475722514,0.7433,4466.7,4466.5,0.00286791]
[1759475722721,0.7433,4466.7,4466.6,0.224]
[1759475724222,0.7433,4466.7,4466.5,0.00286791]
[1759475724515,0.7433,4466.7,4466.6,0.4264]
[1759475725114,0.7433,4466.7,4466.6,0.7384]
[1759475726625,0.7433,4466.7,4466.6,0.9619]
[1759475729425,1.14599,4466.7,4466.6,0.7384]
[1759475729626,1.14599,4466.7,4466.6,0.224]
[1759475730027,1.14599,4466.7,4466.5,0.22686791]
[1759475730521,1.14599,4466.7,4466.6,0.2165]
[1759475730726,1.14599,4466.7,4466.6,0.5399]
[1759475731230,0.7433,4466.7,4466.6,0.7563]
[1759475731421,0.3264,4466.9,4466.6,0.4329]
[1759475731625,0.3295,4467.1,4466.8,0.4329]
[1759475731828,0.40265,4467.2,4466.9,0.3117]
[1759475732028,0.5324,4467.0,4466.9,0.7483]
[1759475732625,0.7543,4467.4,4467.3,0.7483]
[1759475732831,0.5324,4467.4,4467.3,0.9723]
[1759475733132,0.7543,4467.4,4467.3,0.9723]
[1759475734227,1.15693,4467.4,4467.3,0.9723]
[1759475734929,0.7543,4467.4,4467.3,0.9723]
[1759475736233,0.7543,4467.4,4467.3,0.224]
[1759475736626,0.7543,4467.0,4466.9,0.7483]
[1759475736827,0.8767,4467.0,4466.9,0.6606]
[1759475737726,0.8767,4467.0,4466.9,0.9723]
[1759475739535,0.2219,4466.7,4466.6,0.5347]
[1759475739733,0.7543,4466.7,4466.6,0.7587]
[1759475740034,0.7543,4466.7,4466.6,0.9723]
[1759475742028,0.7543,4466.7,4466.6,0.7483]
[1759475742234,0.7543,4466.7,4466.6,0.9723]
[1759475742435,0.7543,4466.7,4466.6,0.6606]
[1759475742736,0.7543,4466.7,4466.6,0.9723]
[1759475744032,0.7543,4466.7,4466.6,0.7483]
[1759475744228,0.7543,4466.7,4466.5,0.00286791]
[1759475744535,1.157,4466.6,4466.5,0.53756791]
[1759475744734,1.157,4466.6,4466.5,0.76156791]
[1759475744929,0.7543,4466.6,4466.5,0.97516791]
[1759475747037,0.1224,4467.0,4466.5,1.10176791]
[1759475747232,0.60558,4466.9,4466.8,0.4366]
[1759475747429,0.60558,4466.9,4466.8,0.7483]
[1759475747623,0.82748,4466.9,4466.8,0.7483]
[1759475747827,1.15698,4466.9,4466.8,0.7483]
[1759475750334,1.15698,4466.9,4466.8,0.223]
[1759475750534,0.4027,4466.6,4466.5,0.00286791]
[1759475750737,1.157,4466.6,4466.5,0.97516791]
[1759475751734,1.157,4466.6,4466.5,0.75116791]
[1759475751936,1.157,4466.6,4466.5,0.97516791]
[1759475752436,0.7543,4466.6,4466.5,0.97516791]
[1759475754140,0.7543,4466.6,4466.5,0.00286791]
[1759475754341,0.7543,4466.6,4466.5,0.22686791]
[1759475755331,0.7543,4466.6,4466.5,0.00286791]
[1759475755534,0.7543,4466.6,4466.5,0.22686791]
[1759475755736,1.22752233,4466.6,4466.5,0.22686791]
[1759475756136,1.22752233,4466.6,4466.5,0.00286791]
[1759475756542,6.22752233,4466.6,4466.5,0.00286791]
[1759475760335,6.22752233,4466.6,4465.0,1.90289632]
[1759475760336,0.60573,4465.2,4465.1,0.7483]
[1759475760539,1.15713,4465.2,4465.1,0.9723]
[1759475760847,0.7543,4465.2,4465.1,0.9723]
[1759475761149,0.7543,4465.2,4465.1,0.7483]
[1759475761445,0.7543,4465.2,4464.3,0.223]
[1759475761446,0.7543,4464.4,4464.3,0.223]
[1759475761650,0.7543,4464.4,4464.3,0.7483]
[1759475761846,0.3117,4464.7,4464.3,0.7483]
[1759475762142,0.5216,4464.7,4464.6,0.7595]
[1759475762446,0.73669312,4464.7,4464.6,0.98572477]
[1759475766049,0.00159312,4464.7,4464.6,1.38860477]
[1759475766747,0.00159312,4464.7,4464.6,6.38860477]
[1759475767642,0.3117,4465.4,4465.0,0.40285]
[1759475767850,0.5216,4465.4,4465.3,0.7595]
[1759475768146,0.5216,4465.4,4465.3,0.9835]
[1759475768351,0.7351,4465.9,4465.8,0.7595]
[1759475768743,0.73766625,4465.9,4465.8,0.7595]
[1759475770450,0.00256625,4465.9,4465.8,0.7595]
[1759475772642,0.5216,4466.9,4466.8,0.22]
[1759475772856,0.7351,4466.9,4466.8,0.9835]
[1759475773353,0.5216,4467.2,4467.1,0.7595]
[1759475773556,0.7351,4467.2,4467.1,0.7595]
[1759475773757,0.73784992,4467.2,4467.1,0.7595]
[1759475776353,0.73784992,4467.2,4467.1,1.16216]
[1759475776559,0.21264992,4467.2,4467.1,1.16216]
[1759475777456,0.00274992,4467.2,4467.1,1.16216]
[1759475780158,0.00274992,4467.2,4467.1,6.16216]
[1759475782057,0.3117,4468.5,4468.3,0.40255]
[1759475782263,0.5216,4468.5,4468.4,0.9835]
[1759475782868,0.52369136,4468.5,4468.4,0.98528226]
[1759475783361,0.21199136,4468.5,4468.4,0.98528226]
[1759475783963,0.52369136,4468.5,4468.4,0.98528226]
[1759475784165,0.73719136,4468.5,4468.4,0.98528226]
[1759475787162,0.00209136,4468.5,4468.4,0.98528226]
[1759475788358,0.55079136,4468.5,4468.4,0.98528226]
[1759475790367,0.75819136,4468.5,4468.4,0.98528226]
[1759475791261,0.55079136,4468.5,4468.4,0.98528226]
[1759475791462,0.00209136,4468.5,4468.4,0.98528226]
[1759475800664,0.53239136,4468.5,4468.4,0.98528226]
[1759475800866,0.00209136,4468.5,4468.4,0.98528226]
[1759475802363,0.00209136,4468.5,4468.4,5.98528226]
[1759475802564,0.5303,4469.7,4469.6,0.7337]
[1759475802762,0.5303,4469.7,4469.6,0.9577]
[1759475802965,0.7525,4469.7,4469.6,0.9577]
[1759475803567,0.53278525,4469.7,4469.6,0.9577]
[1759475803977,0.21478525,4469.7,4469.6,0.9577]
[1759475805365,0.00248525,4469.7,4469.6,1.13880113]
[1759475806573,0.00248525,4469.7,4469.6,6.13880113]
[1759475806773,0.00248525,4469.7,4469.6,36.05080113]
[1759475808461,0.32048525,4469.7,4469.6,1.13880113]
[1759475808971,0.00248525,4469.7,4469.6,1.13880113]
[1759475809970,0.75498525,4469.7,4469.6,0.9577]
[1759475810177,0.75498525,4469.7,4469.6,0.4345]
[1759475810671,0.75498525,4469.7,4469.6,0.224]
[1759475812066,0.75498525,4469.7,4469.6,0.4345]
[1759475812374,0.75498525,4469.7,4469.6,0.9577]
[1759475812779,0.75498525,4469.7,4469.6,0.4345]
[1759475813175,0.00248525,4469.7,4469.6,0.9577]
[1759475814175,0.75498525,4469.7,4469.6,0.7337]
[1759475814475,0.75498525,4469.7,4469.6,0.9377]
[1759475818478,0.00248525,4469.7,4469.6,0.9377]
[1759475820375,0.00248525,4469.7,4469.6,0.9577]
[1759475821074,0.53278525,4469.7,4469.6,0.9577]
[1759475821276,0.75498525,4469.7,4469.6,0.9577]
[1759475824883,0.75498525,4469.7,4469.6,0.7337]
[1759475825081,0.75498525,4469.7,4469.6,0.9577]
[1759475826074,0.00248525,4469.7,4469.6,0.9577]
[1759475828983,0.52418525,4469.7,4469.6,0.9577]
[1759475829485,0.00248525,4469.7,4469.6,1.36013]
[1759475831590,0.00248525,4469.7,4469.6,0.7337]
[1759475831791,0.52418525,4469.7,4469.6,0.9577]
[1759475832390,0.52418525,4469.7,4469.6,0.7337]
[1759475832592,0.73988525,4469.7,4469.6,0.7337]
[1759475832792,0.73988525,4469.7,4469.6,0.6515]
[1759475833192,0.73988525,4469.7,4469.6,0.985]
[1759475833886,0.73988525,4469.7,4469.3,2.00390022]
[1759475833887,0.73988525,4469.7,4469.3,1.93495022]
[1759475834087,0.8633,4469.5,4469.4,0.9758]
[1759475836490,0.8633,4469.5,4469.0,1.80815022]
[1759475836491,0.7374,4469.1,4469.0,1.80815022]
[1759475836685,0.7374,4469.1,4469.0,0.4307]
[1759475836891,0.7374,4469.1,4469.0,0.7642]
[1759475838398,0.4442,4469.0,4468.6,0.40252]
[1759475838602,0.8633,4469.0,4468.9,0.5402]
[1759475838896,0.8633,4469.0,4468.9,0.7518]
[1759475838897,0.7374,4469.0,4468.9,0.7518]
[1759475839891,0.8633,4469.0,4468.9,0.9758]
[1759475840991,0.2034,4468.6,4468.5,0.3335]
[1759475841189,0.7374,4468.6,4468.5,0.7642]
[1759475841392,0.7374,4468.6,4468.5,0.2067]
[1759475841588,0.52843,4468.5,4468.4,0.00178226]
[1759475841793,1.26583,4468.5,4468.4,0.22578226]
[1759475841991,1.26583,4468.5,4468.4,0.00178226]
[1759475842488,1.26583,4468.5,4468.4,0.22578226]
[1759475842693,6.26583,4468.5,4468.4,0.33648226]
[1759475842899,1.26583,4468.5,4468.4,0.66998226]
[1759475843101,1.26583,4468.5,4468.4,0.33648226]
[1759475843390,1.26583,4468.5,4468.4,0.12978226]
[1759475843592,1.26583,4468.5,4468.4,0.00178226]
[1759475845193,1.26583,4468.5,4468.4,0.22578226]
[1759475845598,1.26583,4468.5,4468.4,0.43258226]
[1759475846001,0.8633,4468.5,4468.4,0.97148226]
[1759475846205,0.7374,4468.5,4468.4,0.97148226]
[1759475846500,0.8593,4468.5,4468.4,0.97148226]
[1759475847201,0.3188,4468.9,4468.4,0.97148226]
[1759475847498,0.7498,4468.9,4468.8,0.7457]
[1759475848495,0.7498,4468.9,4468.8,0.4131]
[1759475849196,0.2185,4468.6,4468.5,0.3326]
[1759475849406,0.431,4468.6,4468.5,0.7457]
[1759475849700,1.27423,4468.5,4468.4,0.00178226]
[1759475849896,1.27423,4468.5,4468.4,0.22578226]
[1759475850096,1.27423,4468.5,4468.4,0.00178226]
[1759475850498,1.27423,4468.5,4468.4,0.07778226]